bitfinex-derivatives/quotes_ETHF0:USTF0_20250326
["timestamp","ask_amount","ask_price","bid_price","bid_amount"]
[1743005591209,3.7072,2015.2,2015.1,1.3196]
[1743005591708,0.4994,2015.2,2015.1,1.3196]
[1743005591893,0.4994,2015.2,2015.1,3.8196]
[1743005592098,3.2078,2015.5,2015.1,3.8196]
[1743005592298,0.00744361,2015.8,2015.2,2.0374]
[1743005592299,3.21524361,2015.8,2015.2,2.0374]
[1743005592502,3.21524361,2015.8,2015.3,4.7414]
[1743005592806,3.21524361,2015.8,2015.4,1.3035]
[1743005593007,4.62564361,2015.8,2015.4,1.3035]
[1743005593501,1.4104,2015.7,2015.4,1.3035]
[1743005594898,3.21524361,2015.8,2015.4,1.3035]
[1743005595206,1.4104,2015.7,2015.4,1.3035]
[1743005595406,1.4104,2015.7,2015.5,0.7146]
[1743005595607,1.4104,2015.7,2015.6,1.3035]
[1743005596804,2.0955,2015.7,2015.3,3.4]
[1743005597005,2.0955,2015.7,2015.4,1.4222]
[1743005597205,1.3792,2015.6,2015.4,1.4222]
[1743005597613,3.9051,2015.5,2015.4,1.4222]
[1743005597810,3.9051,2015.5,2015.1,0.7157]
[1743005598012,1.3792,2015.4,2015.1,2.1379]
[1743005598205,1.3792,2015.4,2015.2,1.4222]
[1743005599112,0.7031,2015.3,2015.2,1.4222]
[1743005601214,0.7031,2015.3,2015.0,0.00744361]
[1743005601421,0.7031,2015.3,2015.0,1.32024361]
[1743005601422,3.2078,2015.1,2015.0,1.32024361]
[1743005601918,3.9129,2015.1,2015.0,1.32024361]
[1743005606625,3.2078,2015.1,2015.0,1.32024361]
[1743005609720,3.2078,2015.1,2015.0,4.71924361]
[1743005609920,2.6809,2015.5,2015.0,4.71924361]
[1743005610125,2.6809,2015.5,2015.1,2.1143]
[1743005610427,2.6809,2015.5,2015.2,1.4191]
[1743005610627,1.3107,2015.4,2015.2,1.4191]
[1743005611024,1.3702,2015.5,2015.2,1.4191]
[1743005611225,1.3702,2015.5,2015.3,0.6782]
[1743005611423,1.3702,2015.5,2015.4,1.3669]
[1743005611622,2.7349,2015.5,2015.4,1.3669]
[1743005618429,2.7349,2015.5,2015.1,0.6952]
[1743005618730,1.36,2015.4,2015.2,1.3108]
[1743005620034,3.2078,2015.3,2015.2,1.3108]
[1743005620333,3.2078,2015.3,2015.0,0.00744361]
[1743005620632,1.309,2015.2,2015.0,1.38644361]
[1743005630233,3.2078,2015.3,2015.0,1.38644361]
[1743005630430,3.2078,2015.3,2015.1,0.7075]
[1743005630626,3.2078,2015.3,2015.2,1.378]
[1743005632829,3.2078,2015.3,2015.0,0.00744361]
[1743005633030,1.3594,2015.2,2015.0,1.39644361]
[1743005633234,0.7147,2015.1,2015.0,1.39644361]
[1743005633638,2.0741,2015.1,2015.0,1.39644361]
[1743005633839,2.0741,2015.1,2015.0,0.00744361]
[1743005657359,12.62352803,2015.1,2014.2,3.2078]
[1743005657564,3.2078,2014.4,2014.1,1.335]
[1743005657762,2.7104,2014.3,2014.2,1.3244]
[1743005662271,2.7104,2014.3,2014.0,0.00496244]
[1743005662468,3.2078,2014.1,2014.0,0.00496244]
[1743005667770,3.2078,2014.1,2014.0,0.66226244]
[1743005668073,3.2078,2014.1,2014.0,1.31056244]
[1743005669267,3.2078,2014.1,2014.0,0.00496244]
[1743005669467,1.3435,2014.2,2014.0,0.00496244]
[1743005669679,3.2078,2014.1,2014.0,0.00496244]
[1743005674171,4.6226,2014.1,2014.0,0.00496244]
[1743005676071,3.2078,2014.1,2014.0,0.00496244]
[1743005676275,3.2078,2014.1,2014.0,0.65816244]
[1743005676877,4.65442803,2014.2,2014.0,0.65816244]
[1743005677181,4.65442803,2014.2,2014.1,1.409]
[1743005679486,6.07872803,2014.2,2014.1,1.409]
[1743005679672,1.4243,2014.2,2014.1,1.409]
[1743005684082,4.6321,2014.2,2014.1,1.409]
[1743005686482,0.00744361,2014.5,2014.1,1.409]
[1743005686674,0.00744361,2014.5,2014.3,3.2078]
[1743005686982,3.2078,2014.9,2014.4,4.7207]
[1743005687180,3.2078,2014.9,2014.5,1.2978]
[1743005688078,3.21524361,2014.9,2014.5,1.2978]
[1743005689681,3.21524361,2014.9,2014.5,5.1878]
[1743005689986,0.00744361,2014.9,2014.8,3.2078]
[1743005690688,0.00744361,2014.9,2014.8,5.2547]
[1743005692683,4.5596,2015.3,2014.8,5.2547]
[1743005693081,4.5596,2015.3,2014.9,1.3851]
[1743005693887,4.56704361,2015.3,2014.9,1.3851]
[1743005695090,0.00744361,2015.3,2015.1,3.2078]
[1743005695285,0.00744361,2015.3,2015.2,2.7689]
[1743005696888,3.2078,2015.9,2015.2,5.2689]
[1743005697091,5.8949,2015.9,2015.3,4.6881]
[1743005697291,1.3304,2015.8,2015.4,1.2961]
[1743005697476,1.3304,2015.8,2015.4,4.5039]
[1743005697880,1.3304,2015.8,2015.5,1.2961]
[1743005698194,1.33784361,2015.8,2015.5,1.2961]
[1743005701689,3.2078,2015.6,2015.5,1.2961]
[1743005703788,3.2078,2015.6,2015.2,0.6775]
[1743005703995,2.6935,2015.5,2015.3,1.3812]
[1743005704193,1.3465,2015.4,2015.3,1.3812]
[1743005705980,1.3465,2015.4,2015.1,3.2078]
[1743005706185,3.2078,2015.3,2015.2,1.329]
[1743005708987,1.347,2015.5,2015.2,1.329]
[1743005709290,3.2078,2015.7,2015.3,0.6928]
[1743005709489,5.2244,2015.7,2015.4,1.9648]
[1743005709683,5.2244,2015.7,2015.5,1.3188]
[1743005709888,1.32,2015.6,2015.5,1.3188]
[1743005710489,1.32,2015.6,2015.2,3.39]
[1743005710693,1.32,2015.6,2015.1,1.35]
[1743005710694,0.7048,2015.5,2015.3,1.3188]
[1743005710896,1.32,2015.4,2015.3,1.3188]
[1743005711695,2.018,2015.4,2015.3,1.3188]
[1743005713188,5.2258,2015.4,2015.0,3.39644361]
[1743005713393,1.3894,2015.3,2015.1,1.4209]
[1743005713596,3.9058,2015.4,2015.1,1.4209]
[1743005713796,5.2952,2015.4,2015.1,2.0985]
[1743005714303,5.2952,2015.4,2015.2,1.4209]
[1743005715200,1.3045,2015.3,2015.2,1.4209]
[1743005726411,1.3045,2015.3,2015.0,0.00744361]
[1743005726612,3.2078,2015.1,2015.0,0.00744361]
[1743005728312,9.0958,2015.1,2014.1,3.2078]
[1743005728613,3.2078,2014.6,2014.4,1.3108]
[1743005728911,2.0171,2014.5,2014.2,1.3108]
[1743005729511,3.2078,2014.3,2014.2,1.3108]
[1743005730006,3.2078,2014.3,2014.1,0.00744361]
[1743005730197,1.4247,2014.2,2014.1,0.00744361]
[1743005731505,2.1011,2014.2,2013.7,1.43]
[1743005731709,3.2078,2014.0,2013.7,1.43]
[1743005731909,1.4247,2013.9,2013.7,1.43]
[1743005737715,4.0644,2014.2,2013.8,44.0078]
[1743005737716,0.6764,2014.2,2013.8,44.0078]
[1743005737911,0.6764,2014.2,2013.9,2.0104]
[1743005738420,1.3357,2014.1,2013.9,2.0104]
[1743005739608,4.5435,2014.1,2013.9,1.3524]
[1743005739807,4.5435,2014.1,2014.0,1.3934]
[1743005740715,4.5435,2014.1,2013.6,54.48768015]
[1743005740905,1.9419,2014.0,2013.7,1.3934]
[1743005741104,1.2915,2013.9,2013.8,40.8]
[1743005742016,1.2915,2013.9,2013.7,1.3934]
[1743005742207,3.2078,2013.8,2013.7,1.3934]
[1743005742517,3.9157,2013.8,2013.7,1.3934]
[1743005744905,3.9157,2013.8,2013.6,0.00744361]
[1743005745105,1.3411,2013.7,2013.6,1.31244361]
[1743005753631,3.9157,2013.8,2013.6,1.31244361]
[1743005755937,3.2078,2013.8,2013.6,1.31244361]
[1743005756842,1.3434,2013.9,2013.6,1.31244361]
[1743005758742,0.6529,2013.8,2013.6,1.31244361]
[1743005759837,3.8607,2013.8,2013.6,1.31244361]
[1743005760045,1.2958,2013.7,2013.6,1.31244361]
[1743005760538,1.2958,2013.7,2013.6,0.00744361]
[1743005760740,1.2958,2013.7,2013.3,1.3902]
[1743005760943,3.2078,2013.4,2013.0,0.701]
[1743005761146,3.2078,2013.4,2012.8,6.5948]
[1743005761147,2.0153,2013.3,2013.1,1.3902]
[1743005761343,1.9672,2013.2,2013.1,1.3902]
[1743005762042,0.646,2013.2,2013.1,1.3902]
[1743005762947,1.9672,2013.2,2013.1,1.3902]
[1743005763148,0.646,2013.2,2013.1,1.3902]
[1743005763550,2.1158,2013.3,2013.1,1.3902]
[1743005763851,0.6941,2013.3,2013.1,1.3902]
[1743005764449,2.1158,2013.3,2013.1,1.3902]
[1743005765652,1.4217,2013.2,2013.1,1.3902]
[1743005769252,1.4217,2013.2,2012.9,0.00496244]
[1743005769449,1.4217,2013.2,2013.0,1.3157]
[1743005771150,4.8087,2013.2,2012.9,0.00496244]
[1743005771352,3.2078,2013.0,2012.9,0.00496244]
[1743005771946,4.5669,2013.0,2012.9,0.00496244]
[1743005776851,4.5669,2013.0,2012.4,0.6841]
[1743005777046,1.4152,2012.9,2012.4,2.0477]
[1743005777250,1.4152,2012.9,2012.5,1.3636]
[1743005778353,3.2078,2012.7,2012.5,1.3636]
[1743005778554,2.0335,2012.6,2012.5,1.3636]
[1743005778758,2.6842,2012.6,2012.5,1.3636]
[1743005779154,2.6842,2012.6,2011.9,3.2078]
[1743005779353,3.2078,2012.4,2011.9,3.2078]
[1743005779558,1.3694,2012.3,2011.9,44.0078]
[1743005781658,0.00744361,2012.4,2011.9,44.99608842]
[1743005781855,0.00744361,2012.4,2012.2,3.2078]
[1743005782051,0.00744361,2012.4,2012.3,1.3724]
[1743005783663,0.00744361,2012.4,2012.3,0.6815]
[1743005783866,1.30854361,2012.4,2012.1,3.386]
[1743005784161,1.97904361,2012.4,2012.0,1.3432]
[1743005784462,1.97904361,2012.4,2012.1,1.3399]
[1743005784665,1.3932,2012.3,2012.1,1.3399]
[1743005787663,0.6609,2012.2,2012.1,1.3399]
[1743005792568,0.6609,2012.2,2011.9,40.8]
[1743005792859,2.0189,2012.1,2012.0,1.4123]
[1743005794866,0.00744361,2012.4,2012.0,1.4123]
[1743005795062,2.73644361,2012.4,2012.0,1.4123]
[1743005795376,1.3681,2012.3,2012.0,1.4123]
[1743005802063,1.3681,2012.3,2012.0,1.4223]
[1743005802263,0.72034361,2012.4,2012.1,3.2078]
[1743005802464,1.38274361,2012.4,2012.2,1.3093]
[1743005802765,1.38274361,2012.4,2012.3,0.6818]
[1743005803171,1.38274361,2012.4,2012.3,2.0781]
[1743005805696,0.00744361,2012.4,2012.3,5.3681]
[1743005805887,0.00744361,2012.4,2012.3,2.0781]
[1743005806297,0.00744361,2012.4,2012.3,2.2181]
[1743005806501,0.00744361,2012.4,2012.3,2.0781]
[1743005807591,0.00744361,2012.4,2012.3,2.4581]
[1743005807796,0.00744361,2012.4,2012.3,2.0781]
[1743005811075,0.00744361,2012.4,2012.3,3.2781]
[1743005811678,16.0368571,2013.0,2012.3,3.2781]
[1743005811681,1.3542,2012.9,2012.3,3.2781]
[1743005811977,2.735,2012.9,2012.5,3.2078]
[1743005812173,2.735,2012.9,2012.6,1.3653]
[1743005812474,1.4064,2012.8,2012.6,1.3653]
[1743005821277,1.4064,2012.8,2012.5,3.21524361]
[1743005821477,4.6142,2012.8,2012.5,0.00744361]
[1743005821677,7.9972,2012.8,2012.5,0.00744361]
[1743005821877,1.314,2012.7,2012.5,0.00744361]
[1743005822484,0.7026,2012.6,2012.5,0.00744361]
[1743005825084,1.314,2012.7,2012.5,3.21524361]
[1743005825478,1.314,2012.7,2012.6,1.3271]
[1743005825680,1.314,2012.7,2012.6,2.0232]
[1743005826413,1.314,2012.7,2012.6,1.3271]
[1743005828686,1.314,2012.7,2012.6,2.0375]
[1743005833290,1.314,2012.7,2012.5,3.21524361]
[1743005833595,1.314,2012.7,2012.6,1.3024]
[1743005835691,0.69464361,2012.9,2012.6,8.8944]
[1743005835892,0.00744361,2012.9,2012.8,3.2078]
[1743005836089,1.3771,2013.3,2012.8,8.0178]
[1743005836390,1.3771,2013.3,2013.2,3.2078]
[1743005836391,2.691,2013.3,2013.2,3.2078]
[1743005837697,0.00744361,2013.5,2013.2,3.2078]
[1743005838000,0.00744361,2013.5,2013.3,0.6794]
[1743005838301,0.00744361,2013.5,2013.3,3.9608]
[1743005838496,0.00744361,2013.5,2013.4,1.3314]
[1743005838699,0.00744361,2013.5,2013.4,1.4214]
[1743005839289,0.00744361,2013.5,2013.4,1.3314]
[1743005840798,1.98214361,2013.5,2013.0,4.06784361]
[1743005840993,1.2987,2013.4,2013.1,1.386]
[1743005847503,1.2987,2013.4,2013.1,2.0316]
[1743005847907,1.2987,2013.4,2013.2,1.3142]
[1743005849001,1.2987,2013.4,2013.0,0.00744361]
[1743005849200,1.2987,2013.4,2013.1,1.3845]
[1743005849702,3.2078,2013.3,2013.0,0.00744361]
[1743005849909,1.3117,2013.2,2013.0,0.00744361]
[1743005850108,0.6675,2013.1,2013.0,0.00744361]
[1743005850313,1.3465,2013.1,2013.0,0.00744361]
[1743005850808,1.3465,2013.1,2013.0,1.39194361]
[1743005853107,1.3117,2013.2,2013.0,1.39194361]
[1743005853312,1.3117,2013.2,2013.0,2.23844361]
[1743005853509,1.3786,2013.4,2013.0,6.12714361]
[1743005853808,1.3772,2013.3,2013.1,1.3799]
[1743005855113,1.3786,2013.4,2013.2,3.2078]
[1743005855318,0.00744361,2013.5,2013.3,4.7135]
[1743005855525,0.00744361,2013.5,2013.4,2.7053]
[1743005855725,0.00744361,2013.5,2013.4,3.1853]
[1743005856619,12.65256654,2014.0,2013.4,5.6853]
[1743005856926,3.379,2014.5,2013.8,3.2078]
[1743005857118,2.083,2014.4,2013.9,2.0156]
[1743005857320,2.083,2014.4,2014.1,3.2078]
[1743005857618,2.083,2014.4,2014.2,1.3174]
[1743005857925,1.4093,2014.3,2014.2,1.3174]
[1743005861923,1.2984,2014.4,2014.2,1.3174]
[1743005862225,1.3645,2014.3,2014.2,1.3174]
[1743005867220,0.6513,2014.4,2014.2,1.3174]
[1743005867519,1.32074361,2014.5,2014.3,0.6919]
[1743005867727,1.32074361,2014.5,2014.4,1.4182]
[1743005868330,1.32074361,2014.5,2014.1,3.378]
[1743005868530,1.32074361,2014.5,2014.2,1.4182]
[1743005869926,1.32074361,2014.5,2014.2,4.626]
[1743005870327,1.32074361,2014.5,2014.3,1.3376]
[1743005872432,1.32074361,2014.5,2014.4,0.6939]
[1743005873134,1.32074361,2014.5,2014.4,2.0822]
[1743005873436,1.32074361,2014.5,2014.2,3.2078]
[1743005873930,1.32074361,2014.5,2014.0,0.00744361]
[1743005876824,1.32074361,2014.5,2014.0,3.21524361]
[1743005877030,1.32074361,2014.5,2014.1,1.335]
[1743005879636,3.2078,2014.3,2014.0,0.00744361]
[1743005879832,2.7143,2014.2,2014.0,0.00744361]
[1743005880136,1.3256,2014.1,2014.0,0.00744361]
[1743005882432,4.7006,2014.1,2014.0,0.00744361]
[1743005888536,1.3256,2014.1,2014.0,0.00744361]
[1743005894847,1.3887,2014.2,2014.0,0.00744361]
[1743005895146,3.2078,2014.3,2014.0,4.57524361]
[1743005895339,0.00744361,2014.5,2014.1,1.4096]
[1743005895544,0.00744361,2014.5,2014.2,0.6888]
[1743005895744,0.00744361,2014.5,2014.3,1.4096]
[1743005896044,3.21524361,2014.5,2014.3,1.4096]
[1743005896350,3.21524361,2014.5,2014.1,3.374]
[1743005896547,3.21524361,2014.5,2014.1,1.4096]
[1743005896548,1.3245,2014.4,2014.1,1.4096]
[1743005896847,0.6554,2014.3,2014.1,1.4096]
[1743005897048,1.3121,2014.2,2014.1,1.4096]
[1743005897447,4.5199,2014.2,2014.0,0.00744361]
[1743005897954,1.3121,2014.1,2014.0,0.00744361]
[1743005899453,1.3121,2014.1,2013.3,44.0078]
[1743005899656,3.2078,2013.8,2013.4,4.7737]
[1743005899845,1.955,2013.7,2013.5,1.2978]
[1743005900044,1.3003,2013.6,2013.5,1.2978]
[1743005900849,7.1303,2013.6,2013.3,0.00744361]
[1743005901050,3.2078,2013.4,2013.3,0.00744361]
[1743005902454,4.5081,2013.4,2013.3,0.00744361]
[1743005905365,5.83,2013.6,2013.3,0.00744361]
[1743005905659,4.5345,2013.7,2013.3,0.00744361]
[1743005905858,1.3482,2013.6,2013.3,0.00744361]
[1743005906056,1.3482,2013.6,2013.3,1.33374361]
[1743005908158,1.3482,2013.6,2013.4,0.6789]
[1743005908358,1.3267,2013.7,2013.5,1.3263]
[1743005908558,2.6749,2013.7,2013.5,1.3263]
[1743005909456,4.5775,2013.6,2013.3,0.00744361]
[1743005909662,1.3697,2013.5,2013.3,0.00744361]
[1743005913462,7.1997,2013.5,2013.3,0.00744361]
[1743005913967,4.7007,2013.4,2013.3,0.00744361]
[1743005915662,4.7007,2013.4,2012.8,1.3536]
[1743005915868,5.2852,2013.3,2012.8,1.3536]
[1743005916164,2.0732,2013.2,2012.8,1.3536]
[1743005916367,1.3637,2013.1,2012.8,1.3536]
[1743005917863,0.71694361,2013.2,2012.8,1.3536]
[1743005918069,1.42004361,2013.2,2012.8,1.3536]
[1743005918272,1.42004361,2013.2,2012.8,4.7276]
[1743005918662,0.00744361,2013.2,2012.9,4.5001]
[1743005918973,0.00744361,2013.2,2013.0,1.2923]
[1743005919264,0.00744361,2013.2,2013.0,2.5523]
[1743005919471,0.00744361,2013.2,2013.1,0.7127]
[1743005919671,0.00744361,2013.2,2013.1,7.598]
[1743005919870,0.00744361,2013.2,2013.1,5.378]
[1743005920775,0.00744361,2013.2,2013.1,7.878]
[1743005920975,0.00744361,2013.2,2013.1,5.378]
[1743005921166,0.00744361,2013.2,2013.1,5.388]
[1743005921368,0.00744361,2013.2,2013.1,5.378]
[1743005921673,3.2078,2013.7,2013.1,5.378]
[1743005921674,3.2078,2013.7,2013.1,10.568]
[1743005921870,1.3788,2013.8,2013.2,5.2408]
[1743005922077,3.2078,2014.0,2013.5,3.2078]
[1743005922275,1.3788,2014.0,2013.6,2.0627]
[1743005922472,1.3788,2014.0,2013.7,2.0376]
[1743005922672,1.38624361,2014.0,2013.8,1.3696]
[1743005932182,4.59404361,2014.0,2013.8,0.3696]
[1743005932783,1.4264,2013.9,2013.5,3.2078]
[1743005932975,1.4264,2013.9,2013.3,3.372]
[1743005933175,0.7155,2013.8,2013.3,8.102]
[1743005933373,1.3784,2013.7,2013.3,3.372]
[1743005933579,2.0646,2013.7,2013.3,3.372]
[1743005933773,3.2078,2013.6,2013.1,3.2078]
[1743005933975,4.5862,2013.6,2013.2,3.372]
[1743005934178,1.3784,2013.5,2013.2,3.372]
[1743005935286,1.3784,2013.5,2013.3,1.427]
[1743005935483,1.3784,2013.5,2013.4,0.6727]
[1743005935784,0.6862,2013.7,2013.4,0.6727]
[1743005935987,1.3784,2013.6,2013.5,1.427]
[1743005939489,4.5862,2013.6,2013.1,3.2078]
[1743005939678,4.5862,2013.6,2013.2,1.4164]
[1743005939875,1.2969,2013.5,2012.9,3.371]
[1743005940089,0.6649,2013.4,2012.9,4.7874]
[1743005940291,1.2969,2013.3,2013.0,1.4164]
[1743005940477,1.9815,2013.3,2013.0,1.4164]
[1743005940887,1.2969,2013.2,2013.0,1.4164]
[1743005946995,3.8924,2013.3,2013.0,1.4164]
[1743005947296,4.558,2013.3,2013.0,1.4164]
[1743005947487,1.3502,2013.2,2013.0,1.4164]
[1743005947888,0.6649,2013.4,2013.0,4.7874]
[1743005948195,0.6649,2013.4,2013.1,3.2078]
[1743005948396,1.3779,2013.3,2013.2,2.0794]
[1743005948596,1.3779,2013.3,2013.2,2.7948]
[1743005950093,1.3779,2013.3,2013.2,2.0794]
[1743005950395,1.3779,2013.3,2013.2,1.3779]
[1743005952291,0.6649,2013.4,2013.2,1.3779]
[1743005952593,1.9597,2013.4,2013.2,1.3779]
[1743005952798,3.2078,2013.3,2012.8,3.2078]
[1743005953098,4.5026,2013.3,2012.8,4.6141]
[1743005953292,1.2948,2013.2,2012.9,1.4063]
[1743005953694,0.6632,2013.1,2012.9,1.4063]
[1743005953997,1.2948,2013.0,2012.9,1.4063]
[1743005955691,1.2948,2013.0,2012.9,2.0774]
[1743005956096,1.2948,2013.0,2012.9,1.4063]
[1743005956299,1.9442,2013.0,2012.8,3.2078]
[1743005956799,1.3505,2012.9,2012.8,3.2078]
[1743005957003,1.3505,2012.9,2012.8,4.5336]
[1743005959103,0.6632,2013.1,2012.8,4.5336]
[1743005959301,3.2078,2013.6,2012.9,4.7487]
[1743005959600,3.2078,2013.6,2013.2,3.2078]
[1743005959795,2.7221,2013.9,2013.3,1.3777]
[1743005960002,1.3767,2013.8,2013.3,42.1777]
[1743005960193,1.3767,2013.8,2013.4,2.0474]
[1743005960394,1.3767,2013.8,2013.5,7.9565]
[1743005960593,1.3767,2013.8,2013.6,1.3681]
[1743005963302,3.2078,2013.7,2013.4,3.37]
[1743005963508,1.3729,2013.6,2013.3,1.3681]
[1743005964004,0.6488,2013.5,2013.2,3.37]
[1743005964209,1.9962,2013.4,2013.2,3.37]
[1743005964404,0.6772,2013.4,2013.3,1.2938]
[1743005970399,0.6772,2013.4,2013.0,3.37]
[1743005970600,0.6772,2013.4,2013.1,1.4196]
[1743005973613,0.6488,2013.5,2013.3,3.2078]
[1743005973804,5.83,2013.8,2013.4,1.3144]
[1743005974213,5.83,2013.8,2013.5,0.7099]
[1743005974513,5.83,2013.8,2013.6,1.9985]
[1743005974713,5.83,2013.8,2013.7,1.3144]
[1743005974915,0.664,2013.9,2013.7,1.3144]
[1743005975906,0.00744361,2014.0,2013.7,1.3744]
[1743005976502,0.00744361,2014.0,2013.7,1.70589932]
[1743005976709,0.00744361,2014.0,2013.7,4.23589932]
[1743005976905,0.00744361,2014.0,2013.8,1.3701]
[1743005977303,0.00744361,2014.0,2013.9,3.2078]
[1743005977616,0.00744361,2014.0,2013.9,5.8242]
[1743005977816,0.00744361,2014.0,2013.9,6.1242]
[1743005978108,0.00744361,2014.0,2013.9,5.2343]
[1743005978312,3.2078,2014.6,2013.9,10.3343]
[1743005978614,0.6776,2014.5,2014.0,1.3701]
[1743005978814,0.6776,2014.5,2014.1,4.054]
[1743005979013,0.6776,2014.5,2014.2,1.3802]
[1743005982215,0.6776,2014.5,2013.9,7.2322]
[1743005982416,3.2078,2014.3,2014.0,1.331]
[1743005982620,0.6647,2014.2,2013.9,6.5758]
[1743005982914,0.6647,2014.2,2013.9,7.9068]
[1743005983109,0.679,2014.1,2013.9,7.9068]
[1743005983318,2.0992,2014.1,2013.9,7.9068]
[1743005983717,1.4202,2014.0,2013.9,7.9068]
[1743005983911,1.4202,2014.0,2013.9,6.5758]
[1743005984113,1.4202,2014.0,2013.9,3.2078]
[1743005987125,1.4202,2014.0,2013.8,0.6883]
[1743005987621,4.628,2014.0,2013.7,0.00744361]
[1743005988121,1.3408,2013.9,2013.7,0.00744361]
[1743005994427,0.6621,2013.8,2013.7,0.00744361]
[1743005996828,1.3408,2013.9,2013.7,0.00744361]
[1743006001335,1.3408,2013.9,2013.3,53.9376]
[1743006001336,1.3408,2013.9,2013.3,50.077]
[1743006001530,3.2078,2013.5,2013.3,50.077]
[1743006001836,3.2078,2013.5,2013.1,44.167]
[1743006001837,1.4057,2013.4,2013.2,1.3842]
[1743006002031,2.0817,2013.4,2013.2,0.6967]
[1743006002531,1.4057,2013.3,2013.2,0.6967]
[1743006003532,1.4057,2013.3,2013.2,2.0338]
[1743006004432,0.676,2013.4,2013.2,2.0338]
[1743006004636,0.00744361,2013.5,2013.3,1.3371]
[1743006005433,1.34474361,2013.5,2013.3,1.3371]
[1743006005933,1.34474361,2013.5,2013.3,4.5449]
[1743006006331,1.34474361,2013.5,2013.4,1.3287]
[1743006009031,0.00744361,2013.5,2013.4,1.3287]
[1743006009236,0.00744361,2013.5,2013.4,4.6957]
[1743006011725,0.00744361,2013.5,2013.4,1.3287]
[1743006012134,3.21524361,2013.5,2013.2,2.0813]
[1743006012440,0.6975,2013.4,2013.2,2.0813]
[1743006012636,2.0195,2013.4,2013.3,1.3732]
[1743006012837,1.322,2013.4,2013.3,1.3732]
[1743006015041,0.00744361,2013.5,2013.3,1.3732]
[1743006015243,1.32944361,2013.5,2013.3,1.3732]
[1743006015441,1.32944361,2013.5,2013.4,0.6564]
[1743006015842,0.00744361,2013.5,2013.4,0.6564]
[1743006016342,0.00744361,2013.5,2013.1,0.00744361]
[1743006016531,3.21524361,2013.5,2013.1,1.38334361]
[1743006016732,1.4187,2013.4,2013.1,0.00744361]
[1743006016932,3.2078,2013.2,2013.1,0.00744361]
[1743006017142,3.2078,2013.2,2012.6,3.366]
[1743006017440,1.4187,2013.1,2012.6,4.0242]
[1743006017643,1.4187,2013.1,2012.7,1.3759]
[1743006017845,0.6595,2013.0,2012.7,1.3759]
[1743006018143,2.0679,2012.9,2012.5,41.16574825]
[1743006018344,1.4187,2012.8,2012.6,0.00744361]
[1743006020344,1.4187,2012.8,2012.6,0.00744361]
[1743006020837,1.4187,2012.8,2012.6,1.41454361]
[1743006023554,1.4187,2012.8,2012.6,0.00744361]
[1743006029653,1.4187,2012.8,2012.2,0.6582]
[1743006029654,4.7847,2012.8,2012.2,0.6582]
[1743006029854,3.2078,2012.5,2012.2,0.6582]
[1743006030155,1.3326,2012.4,2012.2,41.83730563]
[1743006030456,2.6673,2012.4,2012.2,1.03730563]
[1743006030752,2.6673,2012.4,2012.2,0.6582]
[1743006030948,1.3226,2012.3,2012.1,1.3544]
[1743006035252,0.00744361,2012.4,2012.1,1.92041196]
[1743006035455,0.00744361,2012.4,2012.3,3.2078]
[1743006036356,3.2078,2012.8,2012.3,13.1791]
[1743006036555,3.2078,2013.2,2012.6,3.2078]
[1743006036757,1.3705,2013.8,2012.9,3.2078]
[1743006036758,1.3462,2013.1,2012.9,3.2078]
[1743006036951,3.2078,2013.5,2013.0,1.9868]
[1743006037152,2.0214,2013.4,2013.1,1.3079]
[1743006037355,1.3462,2013.3,2013.1,1.3079]
[1743006037859,1.3462,2013.3,2013.0,0.68634361]
[1743006038056,3.9031,2013.2,2013.0,0.00744361]
[1743006038262,1.3462,2013.1,2013.0,0.00744361]
[1743006039461,13.0422,2013.1,2012.4,3.366]
[1743006039761,3.2078,2012.8,2012.3,4.5595]
[1743006039957,2.0021,2012.7,2012.4,1.3517]
[1743006040157,2.0102,2012.6,2012.4,1.3517]
[1743006040359,1.3392,2012.5,2012.4,1.3517]
[1743006041056,1.3392,2012.5,2012.2,1.3681]
[1743006041266,1.3392,2012.5,2012.2,2.0545]
[1743006041457,1.3392,2012.5,2012.2,1.3517]
[1743006042867,4.547,2012.5,2012.2,1.3517]
[1743006043365,4.547,2012.5,2012.0,4.602]
[1743006043558,1.3318,2012.4,2012.1,1.3695]
[1743006043755,1.3318,2012.4,2012.3,3.2078]
[1743006044063,0.00744361,2012.5,2012.3,3.2078]
[1743006044260,0.00744361,2012.5,2012.4,1.3898]
[1743006044457,0.00744361,2012.5,2012.4,2.7593]
[1743006045365,0.00744361,2012.5,2012.4,2.0844]
[1743006046069,1.42274361,2012.5,2012.4,2.0844]
[1743006046959,0.00744361,2012.5,2012.4,2.0844]
[1743006048053,0.00744361,2012.5,2012.2,3.366]
[1743006048258,0.00744361,2012.5,2012.2,1.3038]
[1743006048460,1.42274361,2012.5,2012.2,1.3038]
[1743006049369,1.42274361,2012.5,2012.3,3.8911]
[1743006049664,1.42274361,2012.5,2012.4,1.4215]
[1743006051672,3.2078,2013.2,2012.4,1.4215]
[1743006051858,3.2078,2013.2,2012.6,3.2078]
[1743006051859,0.6891,2013.1,2012.6,3.2078]
[1743006052062,1.3343,2013.0,2012.7,2.0606]
[1743006052264,1.3343,2013.0,2012.8,1.402]
[1743006054573,0.00744361,2013.1,2012.9,7.2722]
[1743006054764,0.00744361,2013.1,2013.0,1.402]
[1743006055069,7.915,2013.8,2013.0,1.402]
[1743006055269,0.672,2013.3,2013.0,42.202]
[1743006055474,1.3477,2013.2,2013.1,1.3052]
[1743006056064,4.5555,2013.2,2012.9,3.366]
[1743006056363,0.7127,2013.1,2012.8,1.3052]
[1743006056570,2.0604,2013.1,2012.8,1.3052]